{"text_format":"3","workbook":"xlsx","n_sheets":1,"sheets":["Kiểm xuất sách trong thư viện"],"not_rendered":{"defined_names":4},"read":"whole","date_system":"1900"}

{"sheet":"Kiểm xuất sách trong thư viện","index":0,"n_rows":9,"n_cols":8,"rows_kept":9,"merged":[[0,1,0,4],[0,5,0,6]]}
[null,"Trang tính Kiểm xuất sách trong thư viện",{"$nulls":3},"SỐ NGÀY CHO ĐẾN KHI QUÁ HẠN: ",null,10]
["Quá hạn","HỌC VIÊN","EMAIL LIÊN HỆ","SỐ ĐIỆN THOẠI LIÊN HỆ","TIÊU ĐỀ SÁCH","NGÀY MƯỢN","NGÀY TRẢ","NGÀY"]
[{"$f":"IFERROR(((Sách[[#This Row],[NGÀY MƯỢN]]+Định_mức_ngày)<TODAY())*(LEN(Sách[[#This Row],[NGÀY TRẢ]])=0)*(LEN(Sách[[#This Row],[NGÀY MƯỢN]])>0),0)","v":0},"Maria Cameron","ai_do@example.com","555-0100","Ngôi nhà nhỏ trên thảo nguyên (Little House on the Prairie)",{"$f":"DATE(YEAR(TODAY()),1,14)","v":"2018-01-14"},{"$f":"DATE(YEAR(TODAY()),1,21)","v":"2018-01-21"},{"$f":"IFERROR(IF(Sách[[#This Row],[NGÀY TRẢ]]=\"\",IF(Sách[[#This Row],[NGÀY MƯỢN]]<>\"\", TODAY()-Sách[[#This Row],[NGÀY MƯỢN]],\"\"),Sách[[#This Row],[NGÀY TRẢ]]-Sách[[#This Row],[NGÀY MƯỢN]]), \"\")","v":7}]
[{"$f":"IFERROR(((Sách[[#This Row],[NGÀY MƯỢN]]+Định_mức_ngày)<TODAY())*(LEN(Sách[[#This Row],[NGÀY TRẢ]])=0)*(LEN(Sách[[#This Row],[NGÀY MƯỢN]])>0),0)","v":0},"Stephen Deming","ai_do@example.com","555-0101","Charlotte và Wilbur (Charlotte's Web)",{"$f":"DATE(YEAR(TODAY()),2,15)","v":"2018-02-15"},{"$f":"DATE(YEAR(TODAY()),2,18)","v":"2018-02-18"},{"$f":"IFERROR(IF(Sách[[#This Row],[NGÀY TRẢ]]=\"\",IF(Sách[[#This Row],[NGÀY MƯỢN]]<>\"\", TODAY()-Sách[[#This Row],[NGÀY MƯỢN]],\"\"),Sách[[#This Row],[NGÀY TRẢ]]-Sách[[#This Row],[NGÀY MƯỢN]]), \"\")","v":3}]
[{"$f":"IFERROR(((Sách[[#This Row],[NGÀY MƯỢN]]+Định_mức_ngày)<TODAY())*(LEN(Sách[[#This Row],[NGÀY TRẢ]])=0)*(LEN(Sách[[#This Row],[NGÀY MƯỢN]])>0),0)","v":0},"Karel Florian","ai_do@example.com","555-0102","Trạm thu phí quái lạ (The Phantom Tollbooth)",{"$f":"DATE(YEAR(TODAY()),2,17)","v":"2018-02-17"},{"$f":"DATE(YEAR(TODAY()),2,22)","v":"2018-02-22"},{"$f":"IFERROR(IF(Sách[[#This Row],[NGÀY TRẢ]]=\"\",IF(Sách[[#This Row],[NGÀY MƯỢN]]<>\"\", TODAY()-Sách[[#This Row],[NGÀY MƯỢN]],\"\"),Sách[[#This Row],[NGÀY TRẢ]]-Sách[[#This Row],[NGÀY MƯỢN]]), \"\")","v":5}]
[{"$f":"IFERROR(((Sách[[#This Row],[NGÀY MƯỢN]]+Định_mức_ngày)<TODAY())*(LEN(Sách[[#This Row],[NGÀY TRẢ]])=0)*(LEN(Sách[[#This Row],[NGÀY MƯỢN]])>0),0)","v":0},"Scott Haberkorn","ai_do@example.com","555-0103","Mẹ Frisby và gia đình chuột (Mrs. Frisby and the Rats of Nimh)",{"$f":"DATE(YEAR(TODAY()),2,17)","v":"2018-02-17"},{"$f":"DATE(YEAR(TODAY()),2,25)","v":"2018-02-25"},{"$f":"IFERROR(IF(Sách[[#This Row],[NGÀY TRẢ]]=\"\",IF(Sách[[#This Row],[NGÀY MƯỢN]]<>\"\", TODAY()-Sách[[#This Row],[NGÀY MƯỢN]],\"\"),Sách[[#This Row],[NGÀY TRẢ]]-Sách[[#This Row],[NGÀY MƯỢN]]), \"\")","v":8}]
[{"$f":"IFERROR(((Sách[[#This Row],[NGÀY MƯỢN]]+Định_mức_ngày)<TODAY())*(LEN(Sách[[#This Row],[NGÀY TRẢ]])=0)*(LEN(Sách[[#This Row],[NGÀY MƯỢN]])>0),0)","v":0},"Lola Jacobsen","ai_do@example.com","555-0104","Cô bé Matilda (Matilda)",{"$f":"DATE(YEAR(TODAY()),2,18)","v":"2018-02-18"},{"$f":"DATE(YEAR(TODAY()),2,28)","v":"2018-02-28"},{"$f":"IFERROR(IF(Sách[[#This Row],[NGÀY TRẢ]]=\"\",IF(Sách[[#This Row],[NGÀY MƯỢN]]<>\"\", TODAY()-Sách[[#This Row],[NGÀY MƯỢN]],\"\"),Sách[[#This Row],[NGÀY TRẢ]]-Sách[[#This Row],[NGÀY MƯỢN]]), \"\")","v":10}]
[{"$f":"IFERROR(((Sách[[#This Row],[NGÀY MƯỢN]]+Định_mức_ngày)<TODAY())*(LEN(Sách[[#This Row],[NGÀY TRẢ]])=0)*(LEN(Sách[[#This Row],[NGÀY MƯỢN]])>0),0)","v":1},"Melissa Kerr","ai_do@example.com","555-0105","Biên niên sử Narnia (The Chronicles of Narnia)",{"$f":"DATE(YEAR(TODAY()),1,23)","v":"2018-01-23"},null,{"$f":"IFERROR(IF(Sách[[#This Row],[NGÀY TRẢ]]=\"\",IF(Sách[[#This Row],[NGÀY MƯỢN]]<>\"\", TODAY()-Sách[[#This Row],[NGÀY MƯỢN]],\"\"),Sách[[#This Row],[NGÀY TRẢ]]-Sách[[#This Row],[NGÀY MƯỢN]]), \"\")","v":164}]
[{"$f":"IFERROR(((Sách[[#This Row],[NGÀY MƯỢN]]+Định_mức_ngày)<TODAY())*(LEN(Sách[[#This Row],[NGÀY TRẢ]])=0)*(LEN(Sách[[#This Row],[NGÀY MƯỢN]])>0),0)","v":0},"Sharon Salavaria","ai_do@example.com","555-0106","Phù thủy hồ chim đen (The Witch of Blackbird Pond)",{"$f":"TODAY()","v":"2018-07-06"},null,{"$f":"IFERROR(IF(Sách[[#This Row],[NGÀY TRẢ]]=\"\",IF(Sách[[#This Row],[NGÀY MƯỢN]]<>\"\", TODAY()-Sách[[#This Row],[NGÀY MƯỢN]],\"\"),Sách[[#This Row],[NGÀY TRẢ]]-Sách[[#This Row],[NGÀY MƯỢN]]), \"\")","v":0}]